[Event "*** SCC Grand Prix: Titled Tuesday Blitz"]
[Site "Chess.com"]
[Date "2020.10.06"]
[Round "2"]
[White "bocah_sakit"]
[Black "PotapovaM"]
[Result "1-0"]
[WhiteElo "2829"]
[BlackElo "2556"]
[TimeControl "180+1"]
[EndTime "10:18:59 PDT"]
[Termination "bocah_sakit won by checkmate"]

1. e4 {[%clk 0:03:00.9]} 1... c5 {[%clk 0:02:58.4]} 2. Nf3 {[%clk 0:03:00.9]}
2... d6 {[%clk 0:02:58.7]} 3. d4 {[%clk 0:03:00.5]} 3... cxd4 {[%clk 0:02:59.6]}
4. Nxd4 {[%clk 0:03:01.3]} 4... Nf6 {[%clk 0:02:59.4]} 5. Nc3 {[%clk 0:03:01.7]}
5... a6 {[%clk 0:03:00.1]} 6. Bg5 {[%clk 0:03:00.9]} 6... e6 {[%clk 0:03:00.4]}
7. f4 {[%clk 0:02:59.5]} 7... h6 {[%clk 0:03:01]} 8. Bh4 {[%clk 0:02:58.9]} 8...
Qb6 {[%clk 0:03:01.6]} 9. a3 {[%clk 0:02:57.9]} 9... Be7 {[%clk 0:02:59.1]} 10.
Bf2 {[%clk 0:02:53.7]} 10... Qc7 {[%clk 0:02:59.6]} 11. Qe2 {[%clk 0:02:52.7]}
11... b5 {[%clk 0:02:58.1]} 12. O-O-O {[%clk 0:02:51.2]} 12... Bb7 {[%clk
0:02:58.1]} 13. Nb3 {[%clk 0:02:46.3]} 13... Nbd7 {[%clk 0:02:54]} 14. g4 {[%clk
0:02:46]} 14... g5 {[%clk 0:02:09.4]} 15. f5 {[%clk 0:02:41.9]} 15... e5 {[%clk
0:02:09.5]} 16. h4 {[%clk 0:02:38]} 16... Rg8 {[%clk 0:01:38.7]} 17. hxg5 {[%clk
0:02:34.2]} 17... hxg5 {[%clk 0:01:38.6]} 18. Kb1 {[%clk 0:02:31.9]} 18... O-O-O
{[%clk 0:01:38.4]} 19. Bg2 {[%clk 0:02:29.9]} 19... Kb8 {[%clk 0:01:38.4]} 20.
Rhe1 {[%clk 0:02:25.7]} 20... Rc8 {[%clk 0:01:38.5]} 21. Bg1 {[%clk 0:02:16.1]}
21... Rh8 {[%clk 0:01:35.2]} 22. Na2 {[%clk 0:02:05.3]} 22... Rh4 {[%clk
0:01:18.8]} 23. Bf3 {[%clk 0:02:05.3]} 23... Nc5 {[%clk 0:01:14.1]} 24. Nc3
{[%clk 0:01:54.3]} 24... Rh3 {[%clk 0:01:10]} 25. Rc1 {[%clk 0:01:31.6]} 25...
Ba8 {[%clk 0:00:41.8]} 26. Ka2 {[%clk 0:01:25.9]} 26... Bb7 {[%clk 0:00:41.3]}
27. Red1 {[%clk 0:01:16.5]} 27... Ba8 {[%clk 0:00:40.6]} 28. Nd5 {[%clk
0:01:12.5]} 28... Bxd5 {[%clk 0:00:38.5]} 29. exd5 {[%clk 0:01:12.1]} 29... Na4
{[%clk 0:00:27.3]} 30. Qg2 {[%clk 0:01:06.7]} 30... Rh4 {[%clk 0:00:25.2]} 31.
Bf2 {[%clk 0:00:59.7]} 31... Rh7 {[%clk 0:00:22.3]} 32. Bg1 {[%clk 0:00:46.3]}
32... Rh4 {[%clk 0:00:21]} 33. Bf2 {[%clk 0:00:39.8]} 33... Rh7 {[%clk
0:00:20.7]} 34. Be2 {[%clk 0:00:38.5]} 34... Nb6 {[%clk 0:00:11.8]} 35. Bg1
{[%clk 0:00:23.6]} 35... Nc4 {[%clk 0:00:11.3]} 36. Qf2 {[%clk 0:00:17.6]} 36...
Rh4 {[%clk 0:00:09.5]} 37. Bxc4 {[%clk 0:00:16.6]} 37... bxc4 {[%clk 0:00:10.4]}
38. Na5 {[%clk 0:00:17.2]} 38... Nxg4 {[%clk 0:00:09.1]} 39. Qb6+ {[%clk
0:00:12.5]} 39... Qxb6 {[%clk 0:00:08.7]} 40. Bxb6 {[%clk 0:00:13.4]} 40... Rch8
{[%clk 0:00:07.5]} 41. Nc6+ {[%clk 0:00:13.5]} 41... Kb7 {[%clk 0:00:08]} 42.
Bg1 {[%clk 0:00:11.7]} 42... Bd8 {[%clk 0:00:08.3]} 43. b3 {[%clk 0:00:11.5]}
43... c3 {[%clk 0:00:07.9]} 44. Rd3 {[%clk 0:00:11.2]} 44... Rh3 {[%clk
0:00:08.5]} 45. Rcd1 {[%clk 0:00:11.1]} 45... Bb6 {[%clk 0:00:07.7]} 46. Bxb6
{[%clk 0:00:10.8]} 46... Kxb6 {[%clk 0:00:08.6]} 47. a4 {[%clk 0:00:10]} 47...
e4 {[%clk 0:00:06.6]} 48. Rd4 {[%clk 0:00:09.2]} 48... Rf3 {[%clk 0:00:04.7]}
49. Rxe4 {[%clk 0:00:08.6]} 49... Rh2 {[%clk 0:00:04]} 50. Kb1 {[%clk 0:00:07]}
50... Rff2 {[%clk 0:00:04]} 51. Rc1 {[%clk 0:00:07.5]} 51... Rf3 {[%clk
0:00:03.8]} 52. Rxg4 {[%clk 0:00:07.2]} 52... Rxf5 {[%clk 0:00:03.2]} 53. a5+
{[%clk 0:00:07.6]} 53... Kc7 {[%clk 0:00:03.3]} 54. Re4 {[%clk 0:00:07]} 54...
f6 {[%clk 0:00:03.1]} 55. Re7+ {[%clk 0:00:06.7]} 55... Kc8 {[%clk 0:00:03.7]}
56. Nb4 {[%clk 0:00:04.5]} 56... Rff2 {[%clk 0:00:04]} 57. Nxa6 {[%clk
0:00:04.6]} 57... g4 {[%clk 0:00:04.9]} 58. Nb4 {[%clk 0:00:04.2]} 58... g3
{[%clk 0:00:05.1]} 59. a6 {[%clk 0:00:04.9]} 59... Kd8 {[%clk 0:00:04.6]} 60.
Nc6+ {[%clk 0:00:05.3]} 60... Kc8 {[%clk 0:00:04.7]} 61. a7 {[%clk 0:00:06.2]}
61... Rxc2 {[%clk 0:00:03.4]} 62. a8=Q# {[%clk 0:00:07.1]} 1-0

[Event "*** SCC Grand Prix: Titled Tuesday Blitz"]
[Site "Chess.com"]
[Date "2020.10.06"]
[Round "2"]
[White "doons21"]
[Black "Jospem"]
[Result "0-1"]
[WhiteElo "2602"]
[BlackElo "2986"]
[TimeControl "180+1"]
[EndTime "10:19:01 PDT"]
[Termination "Jospem won on time"]

1. e4 {[%clk 0:03:00.9]} 1... e5 {[%clk 0:02:59.3]} 2. Nf3 {[%clk 0:03:00.6]}
2... Nc6 {[%clk 0:03:00]} 3. Nc3 {[%clk 0:02:57.8]} 3... Nf6 {[%clk 0:02:59.9]}
4. g3 {[%clk 0:02:57.9]} 4... Bc5 {[%clk 0:02:51.5]} 5. Bg2 {[%clk 0:02:57.5]}
5... a6 {[%clk 0:02:51.7]} 6. Nxe5 {[%clk 0:02:56.5]} 6... Nxe5 {[%clk 0:02:49]}
7. d4 {[%clk 0:02:56.4]} 7... Bd6 {[%clk 0:02:49.9]} 8. dxe5 {[%clk 0:02:56.1]}
8... Bxe5 {[%clk 0:02:50.8]} 9. f4 {[%clk 0:02:49.1]} 9... Bxc3+ {[%clk
0:02:48.9]} 10. bxc3 {[%clk 0:02:50]} 10... d6 {[%clk 0:02:41.1]} 11. O-O {[%clk
0:02:49.1]} 11... O-O {[%clk 0:02:40.8]} 12. Qd4 {[%clk 0:02:40.3]} 12... Be6
{[%clk 0:02:26.8]} 13. a4 {[%clk 0:02:12.6]} 13... Qc8 {[%clk 0:02:09.8]} 14. f5
{[%clk 0:02:03.3]} 14... Bd7 {[%clk 0:02:05.6]} 15. Bg5 {[%clk 0:02:03.8]} 15...
Qd8 {[%clk 0:01:28.1]} 16. Rad1 {[%clk 0:01:46.5]} 16... Re8 {[%clk 0:01:22.1]}
17. Rfe1 {[%clk 0:01:21.4]} 17... h6 {[%clk 0:01:05.5]} 18. Bf4 {[%clk
0:01:03.4]} 18... Bc6 {[%clk 0:00:53.9]} 19. a5 {[%clk 0:01:01.2]} 19... Nd7
{[%clk 0:00:42]} 20. e5 {[%clk 0:00:35.6]} 20... dxe5 {[%clk 0:00:41.7]} 21.
Bxe5 {[%clk 0:00:35.5]} 21... Nxe5 {[%clk 0:00:42.2]} 22. Rxe5 {[%clk
0:00:32.6]} 22... Bxg2 {[%clk 0:00:31.9]} 23. Kxg2 {[%clk 0:00:26]} 23... Rxe5
{[%clk 0:00:17.6]} 24. Qxd8+ {[%clk 0:00:25.6]} 24... Rxd8 {[%clk 0:00:18.5]}
25. Rxd8+ {[%clk 0:00:25.8]} 25... Kh7 {[%clk 0:00:19.4]} 26. Rd7 {[%clk
0:00:23.6]} 26... Rxf5 {[%clk 0:00:19.5]} 27. Rxc7 {[%clk 0:00:23.2]} 27... Rxa5
{[%clk 0:00:20]} 28. Rxb7 {[%clk 0:00:23.6]} 28... Ra2 {[%clk 0:00:19.9]} 29.
Kh3 {[%clk 0:00:14.8]} 29... Rxc2 {[%clk 0:00:20.2]} 30. Ra7 {[%clk 0:00:15]}
30... Rxc3 {[%clk 0:00:20.1]} 31. Rxa6 {[%clk 0:00:15]} 31... Rc2 {[%clk
0:00:16.7]} 32. Ra5 {[%clk 0:00:15.3]} 32... g5 {[%clk 0:00:15.8]} 33. g4 {[%clk
0:00:15.3]} 33... Kg6 {[%clk 0:00:15.9]} 34. Kg3 {[%clk 0:00:15.2]} 34... Rc4
{[%clk 0:00:16.6]} 35. h3 {[%clk 0:00:15.3]} 35... Rc3+ {[%clk 0:00:17.3]} 36.
Kg2 {[%clk 0:00:15.3]} 36... Rc6 {[%clk 0:00:18.2]} 37. Kg3 {[%clk 0:00:15.2]}
37... Re6 {[%clk 0:00:18.8]} 38. Kg2 {[%clk 0:00:15.5]} 38... Re3 {[%clk
0:00:19.2]} 39. Kh2 {[%clk 0:00:15.3]} 39... Rf3 {[%clk 0:00:19.3]} 40. Kg2
{[%clk 0:00:15.8]} 40... Rf4 {[%clk 0:00:19.9]} 41. Rb5 {[%clk 0:00:15.2]} 41...
h5 {[%clk 0:00:19.3]} 42. Rb6+ {[%clk 0:00:14.9]} 42... f6 {[%clk 0:00:19.4]}
43. Kg3 {[%clk 0:00:12.1]} 43... h4+ {[%clk 0:00:19.8]} 44. Kg2 {[%clk
0:00:12.6]} 44... Rc4 {[%clk 0:00:20.5]} 45. Ra6 {[%clk 0:00:12.9]} 45... Rc2+
{[%clk 0:00:21.1]} 46. Kg1 {[%clk 0:00:13.4]} 46... Rc1+ {[%clk 0:00:21.5]} 47.
Kg2 {[%clk 0:00:13.8]} 47... Rc3 {[%clk 0:00:22.3]} 48. Kh2 {[%clk 0:00:13.6]}
48... Kf7 {[%clk 0:00:22.9]} 49. Rb6 {[%clk 0:00:11.1]} 49... Rc2+ {[%clk
0:00:23.4]} 50. Kg1 {[%clk 0:00:11.3]} 50... Ke7 {[%clk 0:00:24]} 51. Ra6 {[%clk
0:00:09.8]} 51... Rc3 {[%clk 0:00:23.9]} 52. Kg2 {[%clk 0:00:10]} 52... Rc2+
{[%clk 0:00:24.6]} 53. Kg1 {[%clk 0:00:10.3]} 53... Rd2 {[%clk 0:00:25.5]} 54.
Rb6 {[%clk 0:00:08.9]} 54... Rd1+ {[%clk 0:00:24.6]} 55. Kg2 {[%clk 0:00:08.8]}
55... Rd3 {[%clk 0:00:25.5]} 56. Kg1 {[%clk 0:00:09.4]} 56... Rd6 {[%clk
0:00:26.2]} 57. Rb7+ {[%clk 0:00:08.9]} 57... Ke6 {[%clk 0:00:26.7]} 58. Rb5
{[%clk 0:00:09.4]} 58... Rd3 {[%clk 0:00:25.8]} 59. Kg2 {[%clk 0:00:09.3]} 59...
Rd2+ {[%clk 0:00:26.7]} 60. Kg1 {[%clk 0:00:09.4]} 60... Rd5 {[%clk 0:00:27.6]}
61. Rb8 {[%clk 0:00:07.6]} 61... Ke5 {[%clk 0:00:27.7]} 62. Rf8 {[%clk
0:00:07.5]} 62... Rd2 {[%clk 0:00:24.5]} 63. Kf1 {[%clk 0:00:05.8]} 63... Rh2
{[%clk 0:00:17.4]} 64. Re8+ {[%clk 0:00:05.9]} 64... Kf4 {[%clk 0:00:14.6]} 65.
Re6 {[%clk 0:00:06.5]} 65... Rxh3 {[%clk 0:00:14.9]} 66. Rxf6+ {[%clk
0:00:06.8]} 66... Kxg4 {[%clk 0:00:15.5]} 67. Kg2 {[%clk 0:00:07.4]} 67... Rb3
{[%clk 0:00:16]} 68. Kh2 {[%clk 0:00:07.6]} 68... Rb2+ {[%clk 0:00:16.5]} 69.
Kg1 {[%clk 0:00:08.1]} 69... Kg3 {[%clk 0:00:16.8]} 0-1

[Event "*** SCC Grand Prix: Titled Tuesday Blitz"]
[Site "Chess.com"]
[Date "2020.10.06"]
[Round "2"]
[White "Abdimalik_Abdisalimov"]
[Black "As0nchess"]
[Result "1-0"]
[WhiteElo "2752"]
[BlackElo "2504"]
[TimeControl "180+1"]
[EndTime "10:19:02 PDT"]
[Termination "Abdimalik_Abdisalimov won on time"]

1. d4 {[%clk 0:02:58.5]} 1... Nf6 {[%clk 0:03:00]} 2. c4 {[%clk 0:02:58.7]} 2...
e6 {[%clk 0:03:00.2]} 3. Nc3 {[%clk 0:02:58.5]} 3... Bb4 {[%clk 0:03:00.2]} 4.
e3 {[%clk 0:02:59.1]} 4... O-O {[%clk 0:02:59.8]} 5. Bd3 {[%clk 0:02:59.4]} 5...
d5 {[%clk 0:02:59.6]} 6. Nf3 {[%clk 0:02:58.3]} 6... dxc4 {[%clk 0:02:55]} 7.
Bxc4 {[%clk 0:02:59.1]} 7... c5 {[%clk 0:02:55.4]} 8. O-O {[%clk 0:02:57]} 8...
Nc6 {[%clk 0:02:54.7]} 9. a3 {[%clk 0:02:54.7]} 9... Ba5 {[%clk 0:02:54.1]} 10.
Ba2 {[%clk 0:02:46.8]} 10... cxd4 {[%clk 0:02:34.1]} 11. exd4 {[%clk 0:02:45.4]}
11... Bc7 {[%clk 0:02:32.8]} 12. Bg5 {[%clk 0:02:41.7]} 12... h6 {[%clk
0:02:27.9]} 13. Bh4 {[%clk 0:02:41.1]} 13... Ne7 {[%clk 0:02:21.6]} 14. Bxf6
{[%clk 0:02:25.2]} 14... gxf6 {[%clk 0:02:22.5]} 15. Qd2 {[%clk 0:02:15.9]}
15... Kg7 {[%clk 0:02:18.5]} 16. Rad1 {[%clk 0:02:14.7]} 16... Ng6 {[%clk
0:01:41.2]} 17. d5 {[%clk 0:02:10.7]} 17... Bf4 {[%clk 0:01:29.7]} 18. Qe2
{[%clk 0:02:03.6]} 18... Qb6 {[%clk 0:01:24.2]} 19. Rfe1 {[%clk 0:01:54.3]}
19... Re8 {[%clk 0:01:20]} 20. g3 {[%clk 0:01:37.9]} 20... Be5 {[%clk
0:01:19.4]} 21. Nxe5 {[%clk 0:01:29.2]} 21... fxe5 {[%clk 0:01:15.1]} 22. Bb1
{[%clk 0:01:19.6]} 22... exd5 {[%clk 0:01:07.6]} 23. Nxd5 {[%clk 0:01:20.5]}
23... Qc5 {[%clk 0:01:00]} 24. b4 {[%clk 0:01:08.5]} 24... Qc6 {[%clk 0:00:55]}
25. Be4 {[%clk 0:00:49.8]} 25... f5 {[%clk 0:00:46]} 26. Rc1 {[%clk 0:00:43.5]}
26... Qd6 {[%clk 0:00:36.4]} 27. Nc7 {[%clk 0:00:42.8]} 27... Rf8 {[%clk
0:00:23.2]} 28. Nxa8 {[%clk 0:00:25.4]} 28... fxe4 {[%clk 0:00:23]} 29. Qxe4
{[%clk 0:00:25.3]} 29... Qf6 {[%clk 0:00:20.2]} 30. Re2 {[%clk 0:00:23.7]} 30...
Bf5 {[%clk 0:00:18.3]} 31. Qxb7+ {[%clk 0:00:23.3]} 31... Kh8 {[%clk 0:00:18.7]}
32. Nc7 {[%clk 0:00:22.8]} 32... Bg4 {[%clk 0:00:16.1]} 33. Rd2 {[%clk
0:00:18.5]} 33... Bf3 {[%clk 0:00:15]} 34. Qb5 {[%clk 0:00:12]} 34... Nf4 {[%clk
0:00:10.9]} 35. Qf1 {[%clk 0:00:12]} 35... Qf5 {[%clk 0:00:08.4]} 36. h4 {[%clk
0:00:12.2]} 36... Rg8 {[%clk 0:00:06.5]} 37. Kh2 {[%clk 0:00:11.9]} 37... Bg2
{[%clk 0:00:05.3]} 38. Qxg2 {[%clk 0:00:07.8]} 38... Nxg2 {[%clk 0:00:06.2]} 39.
Kxg2 {[%clk 0:00:08.4]} 39... Qe4+ {[%clk 0:00:06]} 40. Kh2 {[%clk 0:00:07.1]}
40... Rf8 {[%clk 0:00:05.2]} 41. Nd5 {[%clk 0:00:05.7]} 41... Qf3 {[%clk
0:00:02.7]} 42. Ne3 {[%clk 0:00:04.7]} 42... Qe4 {[%clk 0:00:01.9]} 43. Re1
{[%clk 0:00:04.1]} 43... Qc6 {[%clk 0:00:01.2]} 44. Ree2 {[%clk 0:00:04.2]}
44... Qg6 {[%clk 0:00:01.5]} 45. Nc4 {[%clk 0:00:03.7]} 45... e4 {[%clk
0:00:01.7]} 46. Ne5 {[%clk 0:00:04.2]} 46... Qf5 {[%clk 0:00:02.2]} 47. Nd7
{[%clk 0:00:05]} 47... Rd8 {[%clk 0:00:02.2]} 48. Nc5 {[%clk 0:00:05.9]} 48...
Rxd2 {[%clk 0:00:01.8]} 49. Rxd2 {[%clk 0:00:06.8]} 49... e3 {[%clk 0:00:02.1]}
50. fxe3 {[%clk 0:00:07.7]} 50... Qe5 {[%clk 0:00:02.4]} 51. Rd8+ {[%clk
0:00:07.2]} 51... Kg7 {[%clk 0:00:02]} 52. Rd7+ {[%clk 0:00:07.5]} 52... Kg6
{[%clk 0:00:02.2]} 53. Rd3 {[%clk 0:00:07.6]} 53... Qb2+ {[%clk 0:00:02.1]} 54.
Kh3 {[%clk 0:00:08.1]} 54... Qe2 {[%clk 0:00:02.4]} 55. Rd6+ {[%clk 0:00:06.7]}
55... Kf7 {[%clk 0:00:02.7]} 56. Rxh6 {[%clk 0:00:05.7]} 1-0

[Event "*** SCC Grand Prix: Titled Tuesday Blitz"]
[Site "Chess.com"]
[Date "2020.10.06"]
[Round "2"]
[White "chessdjw"]
[Black "GigaQuparadze"]
[Result "1/2-1/2"]
[WhiteElo "2620"]
[BlackElo "3010"]
[TimeControl "180+1"]
[EndTime "10:19:03 PDT"]
[Termination "Game drawn by repetition"]

1. c4 {[%clk 0:03:00.9]} 1... Nf6 {[%clk 0:02:59.3]} 2. Nc3 {[%clk 0:03:00.3]}
2... e6 {[%clk 0:02:57]} 3. Nf3 {[%clk 0:02:56.8]} 3... Bb4 {[%clk 0:02:56.4]}
4. Qb3 {[%clk 0:02:54.9]} 4... c5 {[%clk 0:02:51.3]} 5. Nb5 {[%clk 0:02:52.8]}
5... O-O {[%clk 0:02:48.8]} 6. Nd6 {[%clk 0:02:50.3]} 6... Nc6 {[%clk
0:02:45.8]} 7. g3 {[%clk 0:02:47.7]} 7... Qc7 {[%clk 0:02:40.9]} 8. Nxc8 {[%clk
0:02:47.2]} 8... Raxc8 {[%clk 0:02:40.5]} 9. Bg2 {[%clk 0:02:47.6]} 9... d5
{[%clk 0:02:38.4]} 10. cxd5 {[%clk 0:02:47.2]} 10... exd5 {[%clk 0:02:39.3]} 11.
O-O {[%clk 0:02:46.5]} 11... Rfe8 {[%clk 0:02:39]} 12. e3 {[%clk 0:02:39.5]}
12... c4 {[%clk 0:02:37.3]} 13. Qd1 {[%clk 0:02:37.9]} 13... b5 {[%clk
0:02:33.2]} 14. d3 {[%clk 0:02:24.8]} 14... a6 {[%clk 0:02:29.4]} 15. a3 {[%clk
0:02:10.2]} 15... Bc5 {[%clk 0:02:27.3]} 16. Bd2 {[%clk 0:02:06.4]} 16... Rcd8
{[%clk 0:02:25.1]} 17. Qc2 {[%clk 0:01:43.3]} 17... Qb6 {[%clk 0:02:16.5]} 18.
Bc3 {[%clk 0:01:35.2]} 18... cxd3 {[%clk 0:02:01]} 19. Qxd3 {[%clk 0:01:30.7]}
19... d4 {[%clk 0:02:01.3]} 20. exd4 {[%clk 0:01:27.1]} 20... Nxd4 {[%clk
0:02:01.5]} 21. Nxd4 {[%clk 0:01:12.4]} 21... Bxd4 {[%clk 0:02:02.4]} 22. Bxd4
{[%clk 0:01:05.8]} 22... Rxd4 {[%clk 0:02:03.3]} 23. Qc3 {[%clk 0:00:53.4]}
23... h5 {[%clk 0:02:01]} 24. Rad1 {[%clk 0:00:52.1]} 24... Rxd1 {[%clk
0:01:58.9]} 25. Rxd1 {[%clk 0:00:53]} 25... Re2 {[%clk 0:01:57.4]} 26. Qc8+
{[%clk 0:00:35.6]} 26... Kh7 {[%clk 0:01:56.8]} 27. Qf5+ {[%clk 0:00:36.1]}
27... g6 {[%clk 0:01:54.5]} 28. Qf4 {[%clk 0:00:36.7]} 28... Qe6 {[%clk
0:01:24.9]} 29. h3 {[%clk 0:00:20.1]} 29... Re1+ {[%clk 0:01:11]} 30. Rxe1
{[%clk 0:00:19.4]} 30... Qxe1+ {[%clk 0:01:11.9]} 31. Kh2 {[%clk 0:00:19.4]}
31... Kg7 {[%clk 0:01:11.8]} 32. Qd4 {[%clk 0:00:17.7]} 32... a5 {[%clk
0:01:08]} 33. Bc6 {[%clk 0:00:17]} 33... b4 {[%clk 0:01:07.3]} 34. axb4 {[%clk
0:00:16]} 34... axb4 {[%clk 0:01:08.2]} 35. Kg2 {[%clk 0:00:16.1]} 35... Qe6
{[%clk 0:01:06.2]} 36. Bf3 {[%clk 0:00:15.9]} 36... Qe7 {[%clk 0:01:06.2]} 37.
Bc6 {[%clk 0:00:13.3]} 37... Kg8 {[%clk 0:01:05.7]} 38. Bf3 {[%clk 0:00:13.3]}
38... Nh7 {[%clk 0:01:04.6]} 39. Be4 {[%clk 0:00:13.1]} 39... Ng5 {[%clk
0:01:04.6]} 40. Bd5 {[%clk 0:00:13.5]} 40... Qd7 {[%clk 0:00:58.2]} 41. Bxf7+
{[%clk 0:00:12]} 41... Qxf7 {[%clk 0:00:55.1]} 42. Qd8+ {[%clk 0:00:12.4]} 42...
Kh7 {[%clk 0:00:53.9]} 43. Qxg5 {[%clk 0:00:13.3]} 43... Qb7+ {[%clk 0:00:53.9]}
44. Kg1 {[%clk 0:00:12.1]} 44... b3 {[%clk 0:00:53.9]} 45. Qe3 {[%clk
0:00:10.1]} 45... Qf7 {[%clk 0:00:51.8]} 46. Kg2 {[%clk 0:00:10]} 46... Qb7+
{[%clk 0:00:51.1]} 47. Qf3 {[%clk 0:00:10.6]} 47... Qb5 {[%clk 0:00:45.3]} 48.
g4 {[%clk 0:00:10.9]} 48... hxg4 {[%clk 0:00:45.2]} 49. hxg4 {[%clk 0:00:11.8]}
49... Qc4 {[%clk 0:00:44.2]} 50. Kg3 {[%clk 0:00:10.3]} 50... Qc7+ {[%clk
0:00:43.6]} 51. Qf4 {[%clk 0:00:10.6]} 51... Qg7 {[%clk 0:00:42.6]} 52. Qd2
{[%clk 0:00:07.5]} 52... Qe5+ {[%clk 0:00:42.4]} 53. f4 {[%clk 0:00:07.6]} 53...
Qc7 {[%clk 0:00:41.6]} 54. Qd3 {[%clk 0:00:06.6]} 54... Qc2 {[%clk 0:00:40.3]}
55. Qd7+ {[%clk 0:00:06.4]} 55... Kg8 {[%clk 0:00:40.4]} 56. Qe8+ {[%clk
0:00:06.8]} 56... Kg7 {[%clk 0:00:40.6]} 57. Qe5+ {[%clk 0:00:06.8]} 57... Kh7
{[%clk 0:00:40.6]} 58. g5 {[%clk 0:00:06.9]} 58... Qd3+ {[%clk 0:00:39.4]} 59.
Kf2 {[%clk 0:00:06.9]} 59... Qd2+ {[%clk 0:00:39.1]} 60. Kf3 {[%clk 0:00:07]}
60... Qd3+ {[%clk 0:00:37.9]} 61. Kg4 {[%clk 0:00:06.3]} 61... Qd1+ {[%clk
0:00:36.8]} 62. Kg3 {[%clk 0:00:06.1]} 62... Qg1+ {[%clk 0:00:35]} 63. Kf3
{[%clk 0:00:05.2]} 63... Qf1+ {[%clk 0:00:34.7]} 64. Ke4 {[%clk 0:00:05.6]}
64... Qc4+ {[%clk 0:00:34.5]} 65. Ke3 {[%clk 0:00:05.4]} 65... Qc2 {[%clk
0:00:33]} 66. Qe7+ {[%clk 0:00:04.7]} 66... Kg8 {[%clk 0:00:32.9]} 67. Qe8+
{[%clk 0:00:04.8]} 67... Kg7 {[%clk 0:00:33.1]} 68. Qe7+ {[%clk 0:00:05]} 68...
Kg8 {[%clk 0:00:33.4]} 69. Qe6+ {[%clk 0:00:03.6]} 69... Kg7 {[%clk 0:00:33.5]}
70. Qf6+ {[%clk 0:00:04.5]} 70... Kg8 {[%clk 0:00:33.5]} 71. Kf3 {[%clk
0:00:05.1]} 71... Qd3+ {[%clk 0:00:32.2]} 72. Kf2 {[%clk 0:00:05.4]} 72... Qd2+
{[%clk 0:00:31.5]} 73. Kf3 {[%clk 0:00:06.1]} 73... Qd3+ {[%clk 0:00:31.8]} 74.
Kf2 {[%clk 0:00:06.8]} 74... Qd2+ {[%clk 0:00:32.2]} 75. Kf3 {[%clk 0:00:07.5]}
75... Qd3+ {[%clk 0:00:32.5]} 1/2-1/2